bitfinex/quotes_BTCUSD_20240821
["timestamp","ask_amount","ask_price","bid_price","bid_amount"]
[1724271364557,0.324608,61613.0,61594.0,0.4102]
[1724271364558,0.1,61613.0,61594.0,0.4102]
[1724271364706,0.1,61613.0,61599.0,0.162338]
[1724271364707,0.005,61602.0,61599.0,0.162338]
[1724271364918,0.005,61602.0,61595.0,0.0905]
[1724271365090,0.002,61600.0,61598.0,0.162341]
[1724271365290,0.16400298,61610.0,61599.0,0.131244]
[1724271365490,0.009,61607.0,61599.0,0.131244]
[1724271366094,0.009,61607.0,61595.0,0.0905]
[1724271366316,0.009,61607.0,61594.0,0.572552]
[1724271366856,0.162314,61609.0,61595.0,0.162349]
[1724271367052,0.16400298,61608.0,61598.0,0.001]
[1724271368025,0.324641,61607.0,61598.0,0.001]
[1724271368138,0.32632598,61606.0,61594.0,0.4102]
[1724271368337,0.324626,61610.0,61594.0,0.5362057]
[1724271368338,0.008,61608.0,61594.0,0.5362057]
[1724271368567,0.17500298,61609.0,61595.0,0.3247]
[1724271368769,0.011,61609.0,61599.0,0.162339]
[1724271368945,0.011,61609.0,61597.0,0.514189]
[1724271368946,0.011,61609.0,61608.0,0.162316]
[1724271369167,0.011,61609.0,61608.0,0.486949]
[1724271369394,0.011,61609.0,61608.0,0.903249]
[1724271369800,0.011,61609.0,61608.0,0.4163]
[1724271370214,0.324569,61621.0,61608.0,0.4163]
[1724271370415,0.573296,61616.0,61605.0,0.1895]
[1724271370627,0.008,61606.0,61605.0,0.1895]
[1724271371062,0.573296,61616.0,61605.0,0.1895]
[1724271371280,0.411,61616.0,61605.0,0.1895]
[1724271371491,0.007827,61615.0,61605.0,0.1895]
[1724271371919,0.007,61609.0,61594.0,0.04799754]
[1724271372156,0.2825,61603.0,61589.0,0.04799754]
[1724271372332,0.2825,61603.0,61585.0,0.19]
[1724271372333,0.3896,61598.0,61585.0,0.19]
[1724271372541,0.162352,61595.0,61585.0,0.19]
[1724271372742,0.162355,61594.0,61585.0,0.19]
[1724271372940,0.162348,61596.0,61585.0,0.19]
[1724271373207,0.1,61602.0,61585.0,0.27047725]
[1724271373208,0.162339,61600.0,61585.0,0.27047725]
[1724271373435,0.3896,61603.0,61591.0,0.3953]
[1724271373662,0.55460298,61603.0,61592.0,0.0882394]
[1724271373895,0.162333,61602.0,61591.0,0.3953]
[1724271374350,0.003,61603.0,61591.0,0.3953]
[1724271374611,0.001,61603.0,61592.0,0.2181247]
[1724271374850,0.009,61603.0,61592.0,0.0557667]
[1724271375076,0.004,61596.0,61593.0,0.09331657]
[1724271375434,0.1,61607.0,61594.0,0.1977]
[1724271375761,0.015,61603.0,61595.0,0.14508936]
[1724271376494,0.008,61603.0,61595.0,0.14508936]
[1724271376992,0.1,61609.0,61594.0,0.1977]
[1724271376993,0.162321,61606.0,61594.0,0.1977]
[1724271377432,0.001,61596.0,61594.0,0.1977]
[1724271377640,0.001,61596.0,61595.0,0.11683936]
[1724271377851,0.162322,61606.0,61595.0,0.11683936]
[1724271378051,0.009,61606.0,61595.0,0.11683936]
[1724271378259,0.171323,61606.0,61595.0,0.11683936]
[1724271378465,0.162325,61605.0,61595.0,0.11683936]
[1724271378728,0.162325,61605.0,61596.0,0.07520552]
[1724271378913,0.363,61604.0,61591.0,0.3903]
[1724271379153,0.162338,61600.0,61591.0,0.3903]
[1724271379361,0.324669,61602.0,61591.0,0.3903]
[1724271379362,0.162343,61598.0,61591.0,0.3903]
[1724271379603,0.162343,61598.0,61591.0,0.44771]
[1724271379844,0.162343,61598.0,61589.0,0.1838]
[1724271379845,0.162354,61594.0,61589.0,0.1838]
[1724271380285,0.162357,61593.0,61589.0,0.1838]
[1724271380506,0.162367,61589.0,61585.0,0.08047725]
[1724271380717,0.324727,61591.0,61584.0,0.1838]
[1724271380927,0.162382,61583.0,61582.0,0.009086]
[1724271381136,1.52721298,61583.0,61582.0,0.009086]
[1724271381340,1.85197698,61583.0,61582.0,0.009086]
[1724271382322,1.85158617,61583.0,61582.0,0.009086]
[1724271382765,1.85558617,61583.0,61582.0,0.009086]
[1724271382969,2.1896102,61583.0,61582.0,0.009086]
[1724271383194,2.2896102,61583.0,61582.0,0.009086]
[1724271383401,2.2916102,61583.0,61582.0,0.009086]
[1724271383572,2.2876102,61583.0,61582.0,0.009086]
[1724271383772,2.3176102,61583.0,61582.0,0.009086]
[1724271384202,1.466537,61579.0,61578.0,0.009086]
[1724271384403,2.75766386,61579.0,61578.0,0.009086]
[1724271384612,2.97315527,61579.0,61578.0,0.009086]
[1724271384781,2.90042598,61579.0,61578.0,0.009086]
[1724271385344,2.90042598,61579.0,61566.0,0.009086]
[1724271385345,2.00642,61567.0,61566.0,0.009086]
[1724271385532,2.45292298,61567.0,61566.0,0.009086]
[1724271385747,2.55292298,61567.0,61566.0,0.009086]
[1724271385885,2.57592298,61567.0,61566.0,0.009086]
[1724271386517,1.47808,61555.0,61554.0,0.009086]
[1724271386716,2.06699498,61555.0,61554.0,0.009086]
[1724271386945,2.39190698,61555.0,61554.0,0.009086]
[1724271387319,2.60100698,61555.0,61554.0,0.009086]
[1724271387525,2.60300698,61555.0,61554.0,0.009086]
[1724271387730,2.58000698,61555.0,61554.0,0.009086]
[1724271388228,2.59400698,61555.0,61554.0,0.009086]
[1724271388454,2.00286304,61555.0,61554.0,0.009086]
[1724271388656,2.33877504,61555.0,61554.0,0.009086]
[1724271388884,2.32577504,61555.0,61554.0,0.009086]
[1724271389042,2.35477504,61555.0,61554.0,0.009086]
[1724271389241,2.34077504,61555.0,61554.0,0.009086]
[1724271389670,2.35477504,61555.0,61554.0,0.009086]
[1724271390273,2.34077504,61555.0,61554.0,0.009086]
[1724271390478,1.142304,61549.0,61536.0,0.009097]
[1724271390821,2.13490698,61549.0,61536.0,0.009097]
[1724271390953,2.13690698,61549.0,61536.0,0.009097]
[1724271391156,2.13890698,61549.0,61536.0,0.009097]
[1724271391358,2.11090698,61549.0,61536.0,0.009097]
[1724271391558,2.11190698,61549.0,61536.0,0.009097]
[1724271391962,0.3556,61557.0,61540.0,0.162494]
[1724271392187,0.3556,61567.0,61553.0,0.369]
[1724271392409,0.5453,61581.0,61560.0,0.1915]
[1724271392622,0.16400298,61580.0,61561.0,0.369]
[1724271392816,0.16400298,61580.0,61567.0,0.162423]
[1724271393028,0.3556,61590.0,61573.0,0.354]
[1724271393235,0.001,61597.0,61574.0,0.369]
[1724271393236,0.16400298,61589.0,61574.0,0.369]
[1724271393447,0.16400298,61589.0,61574.0,0.723]
[1724271393659,0.16400298,61589.0,61575.0,0.05202958]
[1724271393858,0.3556,61597.0,61576.0,0.08263193]
[1724271394063,0.16400298,61596.0,61581.0,0.354]
[1724271394482,0.16400298,61596.0,61582.0,0.162385]
[1724271394687,0.004,61589.0,61581.0,0.354]
[1724271394995,0.004,61589.0,61588.0,0.162369]
[1724271395199,0.04842641,61648.0,61588.0,0.162369]
[1724271395200,0.000826,61611.0,61588.0,0.723]
[1724271395414,0.49229154,61605.0,61599.0,0.162338]
[1724271395548,0.16400298,61610.0,61600.0,0.1915]
[1724271397028,0.16400298,61610.0,61600.0,0.19103695]
[1724271397386,0.001,61609.0,61588.0,0.37]
[1724271397588,0.012826,61611.0,61589.0,0.0694751]
[1724271397589,0.16400298,61608.0,61589.0,0.0694751]
[1724271397806,0.16400298,61608.0,61590.0,0.162362]
[1724271398170,0.16400298,61608.0,61592.0,0.354]
[1724271398380,0.16400298,61608.0,61592.0,0.516357]
[1724271398786,0.16700298,61608.0,61592.0,0.354]
[1724271399709,0.3556,61607.0,61591.0,0.16236]
[1724271399914,0.16400298,61606.0,61592.0,0.162358]
[1724271400159,0.16400298,61606.0,61590.0,0.324725]
[1724271400479,0.16400298,61606.0,61594.0,0.162352]
[1724271401130,0.16500298,61606.0,61594.0,0.157352]
[1724271401396,0.16500298,61606.0,61589.0,0.0009086]
[1724271401603,0.16400298,61606.0,61589.0,0.3549086]
[1724271401801,0.16400298,61606.0,61596.0,0.324696]
[1724271402001,0.16400298,61606.0,61600.0,0.162336]
[1724271402231,0.16400298,61606.0,61600.0,0.16188045]
[1724271402433,0.000826,61611.0,61601.0,0.04865765]
[1724271402670,0.16400298,61610.0,61607.0,0.162317]
[1724271402877,0.16400298,61610.0,61602.0,0.3565]
[1724271403056,0.16400298,61610.0,61607.0,0.162318]
[1724271403262,0.000826,61611.0,61607.0,0.07172156]
[1724271403471,0.000826,61611.0,61610.0,0.486933]
[1724271403702,0.000826,61611.0,61610.0,1.490177]
[1724271403918,0.000826,61611.0,61610.0,1.846677]
[1724271404121,0.357505,61633.0,61610.0,0.7105]
[1724271404326,0.16400298,61632.0,61611.0,0.09064]
[1724271404538,0.16400298,61632.0,61619.0,0.162286]
[1724271404740,0.16700298,61631.0,61603.0,0.354]
[1724271404947,0.16700298,61631.0,61596.0,0.001]
[1724271404948,0.003,61627.0,61610.0,0.007]
[1724271405179,0.003,61623.0,61610.0,0.016]
[1724271405405,0.16500298,61617.0,61610.0,0.016]
[1724271405597,0.16400298,61617.0,61610.0,0.007]
[1724271406238,0.16400298,61617.0,61607.0,0.162317]
[1724271406451,0.16400298,61617.0,61607.0,0.324636]
[1724271406645,0.16400298,61617.0,61609.0,0.162313]
[1724271406846,0.16400298,61617.0,61610.0,0.16231]
[1724271407067,0.16400298,61617.0,61606.0,0.324638]
[1724271407272,0.16400298,61617.0,61608.0,0.324631]
[1724271407475,0.16400298,61617.0,61615.0,0.162297]
[1724271407688,0.16400298,61617.0,61613.0,0.162301]
[1724271407914,0.16400298,61617.0,61605.0,0.324648]
[1724271408119,0.16400298,61617.0,61610.0,0.002]
[1724271408330,0.16400298,61617.0,61610.0,0.164308]
[1724271408531,0.16400298,61617.0,61611.0,0.162307]
[1724271409081,0.16400298,61617.0,61606.0,0.001]
[1724271409327,0.16400298,61617.0,61615.0,0.002]
[1724271410497,0.16400298,61617.0,61612.0,0.162305]
[1724271410734,0.16400298,61617.0,61615.0,0.001]
[1724271411219,0.16400298,61617.0,61615.0,0.002]
[1724271411473,0.16400298,61617.0,61611.0,0.162308]
[1724271411701,0.16400298,61617.0,61615.0,0.001]
[1724271411960,0.16482998,61617.0,61615.0,0.001]
[1724271412671,0.16482998,61617.0,61610.0,0.16231]
[1724271413185,0.16482998,61617.0,61615.0,0.001]
[1724271413423,0.16482998,61617.0,61615.0,0.002]
[1724271413657,0.16482998,61617.0,61604.0,0.162326]
[1724271413888,0.16482998,61617.0,61610.0,0.001]
[1724271414161,0.16482998,61617.0,61610.0,0.003]
[1724271414414,0.16482998,61617.0,61603.0,0.324657]
[1724271414674,0.17082998,61617.0,61615.0,0.001]
[1724271415916,0.16482998,61617.0,61604.0,0.162325]
[1724271416418,0.17082998,61617.0,61610.0,0.001]
[1724271416887,0.17082998,61617.0,61599.0,0.324675]
[1724271416888,0.16482998,61617.0,61599.0,0.324675]
[1724271417120,0.33312198,61617.0,61604.0,0.001]
[1724271417582,0.32712198,61617.0,61602.0,0.162331]
[1724271417821,0.32712198,61617.0,61600.0,0.1959]
[1724271417822,0.16482998,61617.0,61600.0,0.1959]
[1724271418079,0.16482998,61617.0,61603.0,0.324657]
[1724271418337,0.16482998,61617.0,61605.0,0.162323]
[1724271418573,0.16482998,61617.0,61600.0,0.1959]
[1724271418839,0.16482998,61617.0,61616.0,0.162295]
[1724271418840,0.000827,61617.0,61616.0,0.162295]
[1724271419084,0.17082998,61617.0,61610.0,0.001]
[1724271419311,0.16400298,61616.0,61610.0,0.001]
[1724271419556,0.16400298,61616.0,61603.0,0.698755]
[1724271419813,0.3841,61615.0,61603.0,0.11131466]
[1724271420065,0.16400298,61614.0,61605.0,0.162323]
[1724271420326,0.16400298,61614.0,61604.0,0.324653]
[1724271420567,0.16400298,61614.0,61600.0,0.1959]
[1724271420799,0.16400298,61614.0,61603.0,0.162329]
[1724271421031,0.16400298,61614.0,61600.0,0.520571]
[1724271421263,0.16400298,61614.0,61601.0,0.162333]
[1724271421496,0.16400298,61614.0,61600.0,0.358236]
[1724271421720,0.16400298,61614.0,61600.0,0.4803415]
[1724271421945,0.16400298,61614.0,61600.0,0.3180055]
[1724271422155,0.000827,61617.0,61603.0,0.354]
[1724271422373,0.000827,61617.0,61613.0,0.162303]
[1724271422374,0.002,61614.0,61613.0,0.162303]
[1724271422579,0.002,61614.0,61613.0,0.726203]
[1724271422805,0.000827,61617.0,61614.0,0.3246]
[1724271422980,0.000827,61617.0,61615.0,0.162295]
[1724271423184,0.000827,61617.0,61616.0,0.162295]
[1724271423621,0.000827,61617.0,61616.0,0.324591]
[1724271423831,0.000827,61617.0,61616.0,0.811477]
[1724271424675,0.000827,61617.0,61616.0,0.813477]
[1724271424880,0.000827,61617.0,61616.0,0.97745578]
[1724271425084,0.000827,61617.0,61616.0,1.86594678]
[1724271425291,0.000827,61617.0,61616.0,2.02947907]
[1724271425525,0.371527,61617.0,61616.0,0.81300631]
[1724271425723,0.53552998,61617.0,61616.0,0.002]
[1724271425945,0.000827,61617.0,61616.0,0.002]
[1724271426152,0.001827,61617.0,61616.0,0.5749]
[1724271426357,0.001827,61617.0,61616.0,0.63039]
[1724271426774,0.16482998,61617.0,61616.0,0.008]
[1724271426979,0.000827,61617.0,61608.0,0.5451]
[1724271427411,0.69523,61628.0,61602.0,0.324662]
[1724271427412,0.000826,61642.0,61634.0,1.6816]
[1724271427620,0.00826,61670.0,61656.0,0.56043504]
[1724271427828,0.00826,61670.0,61662.0,0.354]
[1724271429091,0.01126,61665.0,61662.0,0.354]
[1724271429498,0.00826,61665.0,61662.0,0.354]
[1724271429898,0.00826,61665.0,61662.0,0.356]
[1724271430099,0.00826,61665.0,61663.0,0.0356]
[1724271432504,0.00826,61665.0,61663.0,0.0386]
[1724271432912,0.00826,61665.0,61663.0,0.0356]
[1724271433162,0.00826,61665.0,61662.0,0.354]
[1724271433332,0.00826,61665.0,61651.0,0.454]
[1724271433333,0.16400298,61664.0,61651.0,0.454]
[1724271433537,0.16400298,61664.0,61654.0,0.49229154]
[1724271433737,0.16400298,61664.0,61663.0,0.003]
[1724271433950,0.00826,61665.0,61663.0,0.003]
[1724271434109,0.00826,61665.0,61658.0,0.324366]
[1724271434110,0.00826,61665.0,61664.0,0.839007]
[1724271434489,0.00826,61665.0,61664.0,1.4202868]
[1724271434881,0.00566344,61665.0,61664.0,1.4202868]
[1724271435518,0.00566344,61665.0,61664.0,1.4252868]
[1724271435979,0.00566344,61665.0,61664.0,1.4202868]
[1724271436216,0.00566344,61665.0,61664.0,1.7446248]
[1724271436462,0.00566344,61665.0,61664.0,1.90670115]
[1724271436716,0.00566344,61665.0,61664.0,2.08470413]
[1724271436990,0.00566344,61665.0,61664.0,2.07070413]
[1724271437216,0.00066344,61665.0,61664.0,2.08470413]
[1724271437621,0.00066344,61665.0,61664.0,2.07070413]
[1724271437827,0.00066344,61665.0,61664.0,2.07170413]
[1724271438000,0.00066344,61665.0,61664.0,2.07370413]
[1724271438220,0.00066344,61665.0,61664.0,2.07170413]
[1724271438422,0.00066344,61665.0,61664.0,2.08570413]
[1724271438623,0.00066344,61665.0,61664.0,2.08770413]
[1724271438824,0.00066344,61665.0,61664.0,2.07370413]
[1724271438982,0.00066344,61665.0,61664.0,2.05970413]
[1724271439189,0.00066344,61665.0,61664.0,2.08470413]
[1724271439383,0.00066344,61665.0,61664.0,2.07070413]
[1724271439858,0.00066344,61665.0,61664.0,2.08470413]
[1724271440106,0.00066344,61665.0,61664.0,1.59636315]
[1724271440313,0.00066344,61665.0,61664.0,1.5482868]
[1724271440513,0.00066344,61665.0,61664.0,1.59039924]
[1724271440722,0.00066344,61665.0,61664.0,1.5342868]
[1724271440928,0.00066344,61665.0,61664.0,1.5482868]
[1724271441483,0.00066344,61665.0,61664.0,1.59039924]
[1724271442102,0.00066344,61665.0,61664.0,0.028]
[1724271443176,0.00066344,61665.0,61664.0,0.014]
[1724271443400,0.00066344,61665.0,61664.0,0.025]
[1724271443825,0.35196344,61665.0,61664.0,0.014]
[1724271444039,0.35196344,61665.0,61656.0,0.1]
[1724271444254,0.35196344,61665.0,61664.0,0.009]
[1724271444668,0.35196344,61665.0,61656.0,0.26397878]
[1724271445256,0.35196344,61665.0,61664.0,0.02]
[1724271445705,0.35196344,61665.0,61658.0,0.162183]
[1724271445706,0.35196344,61665.0,61659.0,0.162181]
[1724271445918,0.00066344,61665.0,61657.0,0.0707418]
[1724271446130,0.00066344,61665.0,61662.0,0.162172]
[1724271446339,0.00066344,61665.0,61664.0,0.162169]
[1724271446544,0.00066344,61665.0,61664.0,0.2552565]
[1724271446753,0.00066344,61665.0,61664.0,0.0810875]
[1724271447161,0.00066344,61665.0,61660.0,0.162178]
[1724271447370,0.00066344,61665.0,61662.0,0.162172]
[1724271447989,0.00066344,61665.0,61664.0,0.009]
[1724271448368,0.00066344,61665.0,61664.0,0.162169]
[1724271448504,0.00066344,61665.0,61664.0,0.173169]
[1724271448706,0.00066344,61665.0,61664.0,0.5796938]
[1724271448912,0.00066344,61665.0,61664.0,1.2565318]
[1724271449110,0.00066344,61665.0,61664.0,1.93107278]
[1724271449308,0.00066344,61665.0,61664.0,1.93407278]
[1724271449511,0.00066344,61665.0,61664.0,3.61621078]
[1724271449716,0.00066344,61665.0,61664.0,3.64321078]
[1724271449920,0.00066344,61665.0,61664.0,3.63921078]
[1724271450431,0.00066344,61665.0,61664.0,3.64821078]
[1724271450633,0.00066344,61665.0,61664.0,3.69232322]
[1724271450836,0.00066344,61665.0,61664.0,3.83732322]
[1724271451065,0.00066344,61665.0,61664.0,3.68132322]
[1724271451265,0.00066344,61665.0,61664.0,4.24632322]
[1724271451467,0.00066344,61665.0,61664.0,3.69732322]
[1724271451669,0.00066344,61665.0,61664.0,3.69932322]
[1724271452022,0.00066344,61665.0,61664.0,3.68832322]
[1724271452241,0.00066344,61665.0,61664.0,3.70748988]
[1724271453033,0.00066344,61665.0,61664.0,3.69348988]
[1724271453234,0.00066344,61665.0,61664.0,3.67948988]
[1724271453439,0.00066344,61665.0,61664.0,3.68948988]
[1724271453853,0.00066344,61665.0,61664.0,3.30787278]
[1724271454627,0.00066344,61665.0,61664.0,3.29387278]
[1724271455365,0.00066344,61665.0,61664.0,2.8055318]
[1724271455583,0.00066344,61665.0,61664.0,0.3583558]
[1724271455771,0.00066344,61665.0,61664.0,0.3723558]
[1724271456005,0.00066344,61665.0,61664.0,1.0210318]
[1724271456151,0.00066344,61665.0,61664.0,1.73623478]
[1724271456348,0.00066344,61665.0,61664.0,1.73923478]
[1724271456531,0.00066344,61665.0,61664.0,2.06557278]
[1724271456741,0.00066344,61665.0,61664.0,2.38991078]
[1724271456944,0.00066344,61665.0,61664.0,2.41291078]
[1724271457145,0.00066344,61665.0,61664.0,2.39891078]
[1724271457349,0.00066344,61665.0,61664.0,4.64507578]
[1724271457570,0.00066344,61665.0,61664.0,4.70332613]
[1724271457771,0.00066344,61665.0,61664.0,4.98341378]
[1724271458066,0.00826,61673.0,61672.0,2.015532]
[1724271458276,0.00826,61673.0,61672.0,2.65653498]
[1724271458520,0.00826,61673.0,61672.0,2.70078533]
[1724271459147,0.00827,61679.0,61672.0,2.70078533]
[1724271459148,0.00827,61679.0,61676.0,2.013437]
[1724271459353,0.00827,61679.0,61676.0,2.05304717]
[1724271459562,0.00827,61679.0,61676.0,2.05504717]
[1724271460193,0.00827,61679.0,61676.0,2.05304717]
[1724271460399,0.00827,61679.0,61676.0,2.05504717]
[1724271460581,0.00827,61679.0,61676.0,2.05704717]
[1724271460816,0.00827,61679.0,61676.0,2.05304717]
[1724271461243,0.00827,61679.0,61676.0,2.37732217]
[1724271461454,0.00827,61679.0,61676.0,2.39332217]
[1724271461658,0.00827,61679.0,61676.0,2.39132217]
[1724271462481,0.00827,61679.0,61676.0,2.40532217]
[1724271462686,0.00827,61679.0,61676.0,3.66512217]
[1724271464561,0.00827,61679.0,61676.0,3.67128527]
[1724271465253,0.00827,61679.0,61676.0,0.514412]
[1724271465497,0.38777,61677.0,61676.0,0.028]
[1724271465941,1.55064498,61677.0,61676.0,0.028]
[1724271466190,1.87491398,61677.0,61676.0,0.014]
[1724271466395,1.87591398,61677.0,61676.0,0.014]
[1724271466597,2.03989276,61677.0,61676.0,0.014]
[1724271466811,1.87491398,61677.0,61676.0,0.014]
[1724271467040,1.87491398,61677.0,61676.0,0.027]
[1724271467256,1.87491398,61677.0,61676.0,0.013]
[1724271467473,1.87491398,61677.0,61676.0,0.025]
[1724271467708,1.87491398,61677.0,61676.0,0.012]
[1724271467709,1.22637598,61677.0,61676.0,0.012]
[1724271467916,0.57597,61677.0,61664.0,0.0009075]
[1724271468129,0.57597,61677.0,61676.0,0.001]
[1724271468558,0.57597,61677.0,61668.0,0.00265706]
[1724271468773,0.57597,61677.0,61676.0,0.001]
[1724271468997,0.57597,61677.0,61668.0,0.00265706]
[1724271469206,0.57597,61677.0,61668.0,0.08467597]
[1724271469413,0.57597,61677.0,61668.0,0.24683297]
[1724271469615,0.57597,61677.0,61669.0,0.00265899]
[1724271469867,0.57597,61677.0,61665.0,0.162165]
[1724271470090,0.57597,61677.0,61676.0,0.001]
[1724271470493,0.57597,61677.0,61666.0,0.0680327]
[1724271471132,0.57597,61677.0,61666.0,0.2301957]
[1724271471350,0.57597,61677.0,61664.0,0.1630745]
[1724271471970,0.57597,61677.0,61664.0,0.0009075]
[1724271472178,0.57597,61677.0,61665.0,0.49157671]
[1724271472360,0.57597,61677.0,61669.0,0.162154]
[1724271472595,0.57597,61677.0,61670.0,0.09780527]
[1724271473228,0.57597,61677.0,61664.0,0.1630745]
[1724271473429,0.162146,61673.0,61664.0,0.0009075]
[1724271473856,0.162146,61673.0,61664.0,0.0273068]
[1724271474686,0.162139,61676.0,61664.0,0.0303068]
[1724271474889,0.57597,61677.0,61667.0,0.162158]
[1724271475105,0.57597,61677.0,61664.0,0.0039075]
[1724271475106,0.738106,61677.0,61664.0,0.1660765]
[1724271475287,0.738106,61677.0,61665.0,0.0104815]
[1724271475736,0.324281,61675.0,61665.0,0.0104815]
[1724271475941,0.3506,61674.0,61665.0,0.0104815]
[1724271476158,0.162152,61671.0,61665.0,0.0104815]
[1724271476572,0.324294,61673.0,61664.0,0.0009075]
[1724271476573,0.162148,61672.0,61664.0,0.0009075]
[1724271476779,0.162153,61671.0,61664.0,0.0009075]
[1724271477155,0.162148,61672.0,61664.0,0.0009075]
[1724271477523,0.162148,61672.0,61664.0,0.0273071]
[1724271478395,0.162148,61672.0,61665.0,0.001]
[1724271478814,0.162148,61672.0,61664.0,0.0313071]
[1724271479226,0.162151,61671.0,61664.0,0.0273071]
[1724271480840,0.324293,61673.0,61664.0,0.0273071]
[1724271481044,0.3506,61674.0,61664.0,0.0273071]
[1724271481045,0.3581,61669.0,61664.0,0.0009075]
[1724271481248,0.162166,61665.0,61664.0,0.0009075]
[1724271481674,0.324327,61667.0,61664.0,0.0009075]
[1724271481874,0.162164,61666.0,61664.0,0.0009075]
[1724271482291,0.162161,61667.0,61664.0,0.0009075]
[1724271482497,0.682412,61669.0,61664.0,0.0059075]
[1724271482703,0.162163,61667.0,61664.0,0.0069075]
[1724271482904,0.520258,61669.0,61664.0,0.0069075]
[1724271483109,0.162159,61668.0,61664.0,0.0009075]
[1724271483730,0.3581,61676.0,61667.0,0.162159]
[1724271483941,0.3581,61676.0,61668.0,0.08457975]
[1724271484141,0.3581,61676.0,61670.0,0.162152]
[1724271484527,0.3581,61676.0,61668.0,0.24673575]
[1724271484736,0.3581,61676.0,61668.0,0.08457975]
[1724271484942,0.00827,61677.0,61664.0,0.0009075]
[1724271484943,0.3751,61673.0,61664.0,0.0009075]
[1724271485148,0.1942,61670.0,61664.0,0.0009075]
[1724271485386,0.1942,61670.0,61664.0,0.0019075]
[1724271485534,0.1942,61670.0,61664.0,0.0009075]
[1724271485736,0.162156,61669.0,61664.0,0.0009075]
[1724271485930,0.1942,61670.0,61664.0,0.0009075]
[1724271486180,0.356353,61670.0,61664.0,0.0009075]
[1724271486626,0.1544054,61669.0,61664.0,0.0009075]
[1724271486836,0.513759,61668.0,61664.0,0.0009075]
[1724271487253,0.3516,61668.0,61655.0,0.324382]
[1724271487466,0.3516,61668.0,61656.0,0.162188]
[1724271487672,0.3516,61668.0,61658.0,0.162182]
[1724271487851,0.3516,61668.0,61657.0,0.048657]
[1724271488087,0.3516,61668.0,61656.0,0.162188]
[1724271488292,0.3516,61668.0,61664.0,0.001]
[1724271488475,0.3516,61668.0,61657.0,0.162186]
[1724271488922,0.3516,61668.0,61658.0,0.001]
[1724271489126,0.3516,61673.0,61663.0,0.324342]
[1724271489269,0.3516,61673.0,61670.0,0.162152]
[1724271489693,0.3516,61673.0,61669.0,0.162155]
[1724271489893,0.3516,61673.0,61664.0,0.0678842]
[1724271490988,0.3516,61673.0,61670.0,0.001]
[1724271491193,0.00827,61677.0,61670.0,0.001]
[1724271491418,0.00827,61677.0,61672.0,0.162145]
[1724271491618,0.00827,61677.0,61676.0,0.515937]
[1724271491820,0.00827,61677.0,61676.0,1.20101498]
[1724271492033,0.00827,61677.0,61676.0,1.94956498]
[1724271494003,0.00827,61677.0,61676.0,1.96156498]
[1724271494205,0.00827,61677.0,61676.0,2.12354376]
[1724271494404,0.00827,61677.0,61676.0,2.14954376]
[1724271494627,0.00827,61677.0,61676.0,2.15154376]
[1724271495008,0.00827,61677.0,61676.0,2.16054376]
[1724271495339,0.00827,61677.0,61676.0,2.15754376]
[1724271495513,0.00827,61677.0,61676.0,3.40934376]
[1724271495732,0.00827,61677.0,61676.0,3.42334376]
[1724271496053,0.00827,61677.0,61676.0,3.42534376]
[1724271496258,0.00827,61677.0,61676.0,3.39934376]
[1724271496528,0.00827,61677.0,61676.0,3.38734376]
[1724271496752,0.00827,61677.0,61676.0,3.06306876]
[1724271496899,0.00827,61677.0,61676.0,3.04906876]
[1724271497339,0.00827,61677.0,61676.0,3.06306876]
[1724271497529,0.00827,61677.0,61676.0,2.18819376]
[1724271497786,0.00827,61677.0,61676.0,2.51246876]
[1724271497988,0.00827,61677.0,61676.0,3.05776876]
[1724271498130,0.00827,61677.0,61676.0,3.61704376]
[1724271498328,0.00827,61677.0,61676.0,3.60304376]
[1724271498557,0.00827,61677.0,61676.0,3.58904376]
[1724271498730,0.00827,61677.0,61676.0,3.89431876]
[1724271498948,0.00077532,61679.0,61678.0,1.139924]
[1724271499139,0.00077532,61679.0,61678.0,1.61923147]
[1724271499339,0.00077532,61679.0,61678.0,1.59623147]
[1724271500822,0.00077532,61679.0,61678.0,1.61023147]
[1724271501193,0.00077532,61679.0,61678.0,1.60923147]
[1724271501630,0.00077532,61679.0,61678.0,1.61023147]
[1724271501808,0.00077532,61679.0,61678.0,1.59623147]
[1724271502000,0.00077532,61679.0,61678.0,1.60323147]
[1724271502228,0.00077532,61679.0,61678.0,0.22770049]
[1724271503013,0.00077532,61679.0,61678.0,0.06556849]
[1724271503217,0.00077532,61679.0,61678.0,0.23070049]
[1724271503418,0.00077532,61679.0,61678.0,0.23370049]
[1724271503620,0.00077532,61679.0,61678.0,0.07156849]
[1724271503746,0.00077532,61679.0,61678.0,0.08556849]
[1724271503983,0.00077532,61679.0,61678.0,0.22070049]
[1724271504211,0.00077532,61679.0,61678.0,0.23770049]
[1724271504562,0.00077532,61679.0,61678.0,0.06556849]
[1724271504763,0.37237532,61679.0,61668.0,0.324312]
[1724271504884,0.37237532,61679.0,61678.0,0.01]
[1724271505079,0.37237532,61679.0,61678.0,0.017]
[1724271506144,0.37237532,61679.0,61678.0,0.0349144]
[1724271506810,0.37237532,61679.0,61678.0,0.0249144]
[1724271507423,0.00077532,61679.0,61678.0,0.1870464]
[1724271507559,0.00077532,61679.0,61678.0,0.82766]
[1724271508398,0.00077532,61679.0,61678.0,0.99166298]
[1724271509278,0.00077532,61679.0,61678.0,0.179132]
[1724271509474,0.00077532,61679.0,61678.0,0.0997686]
[1724271510016,0.55477532,61679.0,61678.0,0.017]
[1724271510624,0.35777532,61679.0,61678.0,0.017]
[1724271512791,0.6839073,61679.0,61678.0,0.017]
[1724271512996,0.6839073,61679.0,61667.0,0.4752]
[1724271512997,0.162166,61665.0,61658.0,0.4752]
[1724271513215,1.040499,61665.0,61658.0,0.4752]
[1724271513453,1.52883498,61665.0,61653.0,0.0009075]
[1724271514097,1.85316798,61665.0,61653.0,0.0009075]
[1724271514276,1.85316798,61665.0,61664.0,0.0059075]
[1724271514477,1.85316798,61665.0,61664.0,0.0009075]
[1724271514887,1.85416798,61665.0,61664.0,0.0019075]